bitfinex-derivatives/quotes_ETHF0:USTF0_20241008
["timestamp","ask_amount","ask_price","bid_price","bid_amount"]
[1728399767544,0.41008,2439.4,2439.2,0.4101]
[1728399768043,0.41007,2439.5,2439.2,0.4101]
[1728399768241,0.41007,2439.5,2439.3,0.41009]
[1728399768439,0.5628,2439.7,2439.1,7.7093]
[1728399768638,0.41001,2439.8,2439.6,0.41004]
[1728399768839,0.526,2439.9,2439.4,0.41006]
[1728399768840,0.41004,2439.7,2439.4,0.41006]
[1728399769135,0.41005,2439.6,2439.4,0.41006]
[1728399769639,0.41006,2439.5,2439.3,0.94848]
[1728399770141,1.02503,2439.8,2439.4,0.41007]
[1728399770438,0.41004,2439.6,2439.4,0.41006]
[1728399770736,1.02491,2440.1,2439.4,0.41006]
[1728399770737,0.40992,2440.4,2440.2,0.40993]
[1728399770938,0.40992,2440.4,2439.6,2.05018]
[1728399770939,1.02468,2440.7,2440.3,0.5574]
[1728399771139,0.4099,2440.5,2440.3,0.96732]
[1728399771347,0.4099,2440.5,2440.3,0.5574]
[1728399771534,0.4099,2440.5,2440.3,0.96732]
[1728399774138,0.40981,2441.0,2440.7,3.61764]
[1728399774438,0.5582,2441.2,2440.7,3.2078]
[1728399774638,0.5582,2441.2,2440.3,3.7652]
[1728399774639,1.02457,2440.9,2440.3,3.7652]
[1728399774850,0.40986,2440.7,2440.5,0.40989]
[1728399775350,0.40986,2440.7,2440.4,0.4099]
[1728399775542,0.40986,2440.7,2440.3,0.5574]
[1728399775838,0.40986,2440.7,2440.5,0.40988]
[1728399776247,0.40985,2440.8,2440.6,0.40986]
[1728399776439,3.2078,2441.1,2440.4,1.02478]
[1728399776748,0.40983,2440.9,2440.7,0.40984]
[1728399777049,0.40983,2440.9,2440.4,1.02478]
[1728399777243,0.40983,2440.9,2440.8,0.40984]
[1728399777542,0.40987,2440.7,2440.4,0.40991]
[1728399777738,0.40988,2440.6,2440.5,0.40989]
[1728399778247,0.40988,2440.6,2440.4,0.40991]
[1728399778441,0.40988,2440.6,2440.4,0.4099]
[1728399778642,1.02454,2441.0,2440.4,0.4099]
[1728399778842,0.40989,2440.6,2440.4,0.40991]
[1728399779141,1.02454,2441.0,2440.6,0.40986]
[1728399779339,0.40986,2440.7,2440.6,0.40986]
[1728399779733,3.2078,2441.1,2440.7,0.40985]
[1728399779734,0.40985,2440.8,2440.7,0.40985]
[1728399779935,0.40987,2440.7,2440.6,0.40987]
[1728399780137,0.40985,2440.8,2440.4,0.40991]
[1728399780341,0.40983,2440.9,2440.3,4.79001]
[1728399780544,0.40982,2441.0,2440.8,0.40983]
[1728399780739,0.40983,2440.9,2440.8,0.40983]
[1728399780939,0.40981,2441.0,2440.9,0.40982]
[1728399781135,0.40982,2440.9,2440.8,0.40983]
[1728399781343,0.40979,2441.1,2441.0,0.4098]
[1728399781741,0.5582,2441.2,2441.1,0.40979]
[1728399782251,0.96797,2441.2,2441.1,0.40979]
[1728399783046,4.23217,2441.4,2441.3,0.40976]
[1728399783047,3.61755,2441.4,2441.3,0.40976]
[1728399783244,0.40975,2441.4,2441.3,0.40974]
[1728399783443,1.02426,2441.7,2440.9,7.1478]
[1728399783444,0.40977,2441.3,2441.2,0.40977]
[1728399783849,0.40978,2441.2,2440.9,7.1478]
[1728399784043,0.40974,2441.4,2441.3,0.40975]
[1728399784239,1.02433,2441.5,2440.9,7.1478]
[1728399784548,0.4098,2441.1,2441.0,0.4098]
[1728399785241,45.03206,2441.7,2441.4,0.40973]
[1728399785439,45.03206,2441.7,2441.3,0.40975]
[1728399785440,0.40975,2441.4,2441.3,0.40975]
[1728399785839,44.0078,2441.7,2440.9,3.94]
[1728399786041,0.40977,2441.2,2441.0,0.4098]
[1728399786241,0.4098,2441.1,2441.0,0.4098]
[1728399786747,0.40982,2441.0,2440.9,0.40981]
[1728399786938,1.57943,2441.3,2440.8,1.1045]
[1728399787137,0.40982,2440.9,2440.8,0.40983]
[1728399787345,0.4098,2441.1,2441.0,0.4098]
[1728399787938,1.0757,2441.3,2440.6,3.94]
[1728399788139,3.2078,2441.1,2440.5,0.5423]
[1728399788346,0.40987,2440.6,2440.5,0.5423]
[1728399788846,0.40987,2440.6,2440.5,0.95219]
[1728399789036,0.96487,2440.7,2440.6,0.40987]
[1728399789240,1.02464,2440.8,2440.5,4.6399]
[1728399789241,0.40986,2440.8,2440.5,4.6399]
[1728399789441,0.40991,2440.4,2440.3,0.40991]
[1728399789846,0.40993,2440.3,2440.2,0.40993]
[1728399790243,1.0247,2440.6,2440.2,0.40993]
[1728399790449,1.58374,2441.0,2440.2,3.2078]
[1728399790650,1.58374,2441.0,2440.2,0.40993]
[1728399790651,1.02462,2440.8,2440.2,0.40993]
[1728399790841,1.02465,2440.7,2440.1,1.00385]
[1728399791048,3.2078,2440.5,2439.9,3.61779]
[1728399791247,3.2078,2440.2,2439.6,3.2078]
[1728399791541,40.8,2440.1,2439.5,5.2482]
[1728399791747,0.969,2441.1,2440.9,0.40982]
[1728399792047,0.5592,2441.1,2440.6,4.96468]
[1728399792244,0.969,2441.1,2440.8,0.40982]
[1728399792555,0.969,2441.1,2440.7,0.5469]
[1728399792556,0.969,2441.1,2440.9,0.40981]
[1728399792751,0.969,2441.1,2441.0,0.40981]
[1728399792944,4.2321,2441.6,2440.9,3.94]
[1728399793345,0.40978,2441.2,2441.0,0.4098]
[1728399793551,0.4098,2441.1,2440.8,0.5539]
[1728399793848,0.40978,2441.2,2441.1,0.40979]
[1728399794053,0.40979,2441.2,2440.8,0.5539]
[1728399794351,0.40979,2441.2,2441.1,0.40979]
[1728399794652,0.5799,2441.3,2441.2,0.40977]
[1728399794653,0.98967,2441.3,2441.2,0.40977]
[1728399794953,0.40975,2441.4,2441.2,0.40976]
[1728399795155,0.40981,2441.0,2440.9,0.40981]
[1728399795355,0.4098,2441.1,2441.0,0.4098]
[1728399795542,0.4098,2441.1,2440.8,0.5539]
[1728399795543,0.40982,2441.0,2440.9,0.40982]
[1728399795747,0.5947,2441.2,2440.8,0.5539]
[1728399795943,0.5947,2441.2,2440.9,0.40981]
[1728399795944,0.40981,2441.0,2440.9,0.40981]
[1728399796554,0.40977,2441.3,2441.2,0.40977]
[1728399796956,0.40978,2441.2,2441.1,0.40978]
[1728399797755,1.02437,2441.4,2440.8,0.96373]
[1728399797756,0.40982,2440.9,2440.8,0.96373]
[1728399797954,0.40982,2440.9,2440.8,0.5539]
[1728399798149,0.4098,2441.1,2441.0,0.40979]
[1728399798552,1.61913,2441.3,2440.8,0.5539]
[1728399798553,0.40981,2441.0,2440.9,0.40982]
[1728399798954,0.40981,2441.0,2440.9,4.50662]
[1728399799157,0.40969,2441.8,2441.6,0.4097]
[1728399799368,0.40969,2441.8,2441.7,0.40969]
[1728399799369,0.40968,2441.8,2441.7,0.40969]
[1728399799556,0.40968,2441.8,2441.3,4.23218]
[1728399799753,0.40966,2441.9,2441.7,0.40968]
[1728399799948,0.40966,2441.9,2441.4,1.59914]
[1728399800257,0.40967,2441.9,2441.4,1.59914]
[1728399800561,0.40964,2442.0,2441.9,0.40965]
[1728399800952,4.20054,2442.1,2441.9,0.40965]
[1728399801153,40.8,2442.4,2442.0,4.0952]
[1728399801352,1.02388,2442.6,2442.0,4.0952]
[1728399801353,3.2078,2442.8,2442.2,3.2078]
[1728399801554,0.40955,2442.6,2442.5,0.40955]
[1728399801762,0.40955,2442.6,2442.1,0.5926]
[1728399801763,0.5656,2442.9,2442.1,0.5926]
[1728399801955,0.40951,2442.8,2442.6,0.40953]
[1728399802253,0.40956,2442.5,2442.4,0.40957]
[1728399802453,0.40954,2442.6,2442.5,0.40955]
[1728399802653,1.02377,2442.8,2442.1,4.3712]
[1728399803058,3.2078,2442.8,2442.1,1.1634]
[1728399803257,0.40959,2442.4,2442.2,0.4096]
[1728399803453,0.4096,2442.3,2442.1,1.57302]
[1728399803653,1.02383,2442.7,2442.1,1.1634]
[1728399803854,0.5656,2442.9,2441.8,3.61746]
[1728399803855,1.024,2442.3,2441.8,3.61746]
[1728399804050,0.40968,2441.8,2441.6,1.1781]
[1728399804461,0.549,2442.1,2441.6,1.1781]
[1728399804665,0.40966,2441.9,2441.7,0.40968]
[1728399804864,0.549,2442.1,2441.6,1.1781]
[1728399805065,0.40964,2442.0,2441.7,0.40969]
[1728399805255,0.40967,2441.9,2441.8,3.94]
[1728399805462,1.02414,2442.0,2441.6,1.1781]
[1728399805662,0.40966,2441.9,2441.8,0.40966]
[1728399805858,4.23184,2442.2,2441.6,1.1781]
[1728399806059,0.5906,2442.5,2441.6,1.1781]
[1728399806060,1.02394,2442.4,2441.6,1.1781]
[1728399806267,0.40966,2441.9,2441.8,0.40966]
[1728399806863,0.40967,2441.8,2441.7,0.40968]
[1728399807067,0.40969,2441.7,2441.6,1.58779]
[1728399807258,1.02407,2442.1,2441.6,1.1781]
[1728399807568,0.40966,2441.9,2441.8,0.40966]
[1728399808264,1.0241,2442.0,2441.6,1.1781]
[1728399808462,0.40969,2441.7,2441.6,1.5878]
[1728399808856,0.40969,2441.7,2441.6,5.683]
[1728399809060,0.40969,2441.7,2441.6,1.5878]
[1728399809461,1.02416,2441.9,2441.6,0.5855]
[1728399809770,0.40968,2441.8,2441.7,0.40968]
[1728399810162,0.40968,2441.8,2441.7,4.50488]
[1728399810565,0.40968,2441.8,2441.7,4.0952]
[1728399810965,0.40969,2441.7,2441.6,0.99519]
[1728399811363,1.02413,2442.0,2441.6,5.09039]
[1728399811671,0.40968,2441.8,2441.7,0.40968]
[1728399811861,0.40969,2441.7,2441.6,0.9952]
[1728399812063,0.40969,2441.7,2441.6,0.5855]
[1728399812262,0.40969,2441.7,2441.6,0.99521]
[1728399812466,1.02418,2441.9,2441.6,4.6807]
[1728399812669,1.02418,2441.9,2441.7,0.40969]
[1728399812670,0.40969,2441.8,2441.7,0.40969]
[1728399812869,0.40969,2441.7,2441.6,0.5855]
[1728399813066,0.40969,2441.7,2441.3,0.5835]
[1728399813067,1.02426,2441.7,2441.3,0.5835]
[1728399813275,0.40973,2441.5,2441.4,0.40973]
[1728399813481,0.40972,2441.6,2441.5,0.40972]
[1728399813664,4.23197,2441.9,2441.6,0.4097]
[1728399813871,0.4097,2441.7,2441.6,0.4097]
[1728399814171,3.2078,2441.9,2441.3,0.5835]
[1728399814373,0.4097,2441.7,2441.6,0.40969]
[1728399815277,3.2078,2441.9,2441.3,1.60789]
[1728399815467,0.40972,2441.6,2441.5,0.40971]
[1728399815670,1.0242,2441.8,2441.3,0.5835]
[1728399815866,1.0242,2441.8,2441.7,0.40967]
[1728399815867,0.40968,2441.8,2441.7,0.40967]
[1728399816270,0.40968,2441.8,2441.7,4.50487]
[1728399817370,0.40964,2442.1,2442.0,0.40963]
[1728399818572,0.4096,2442.3,2442.2,0.40959]
[1728399819372,3.2078,2442.5,2441.8,8.2934]
[1728399819579,0.40966,2442.0,2441.9,0.40964]
[1728399819877,0.40966,2441.9,2441.8,1.55526]
[1728399820175,3.2078,2442.5,2441.8,1.1456]
[1728399820375,3.2078,2442.5,2442.1,0.40961]
[1728399820376,0.40962,2442.2,2442.1,0.40961]
[1728399820763,0.40962,2442.2,2442.1,4.50401]
[1728399821169,0.40962,2442.2,2442.1,4.50402]
[1728399821374,1.60117,2442.6,2442.1,4.0944]
[1728399821576,1.60117,2442.6,2441.8,5.0856]
[1728399821577,0.40959,2442.4,2442.3,0.40958]
[1728399821774,0.40964,2442.1,2442.0,0.40963]
[1728399822075,0.40966,2441.9,2441.8,0.6007]
[1728399822481,0.40966,2441.9,2441.8,1.01037]
[1728399823279,20.548,2440.9,2440.3,0.04420186]
[1728399823500,20.548,2440.9,2439.5,7.83417171]
[1728399823501,0.41023,2438.5,2438.1,2.06653452]
[1728399823780,3.2078,2438.4,2438.1,8.29715072]
[1728399823987,5.34655823,2438.4,2438.2,6.12298184]
[1728399824372,5.34655823,2438.4,2438.2,7.70635456]
[1728399824373,3.94,2438.3,2438.2,7.70635456]
[1728399824579,1.60122085,2438.3,2437.5,3.2078]
[1728399824779,1.6012727,2438.3,2438.1,6.12298184]
[1728399824979,4.8090727,2438.4,2438.1,6.12298184]
[1728399825185,1.59483442,2438.3,2438.1,7.70635456]
[1728399825387,0.96021156,2438.2,2438.1,7.70635456]
[1728399825885,1.59474427,2438.2,2438.1,7.70635456]
[1728399826285,0.96021156,2438.2,2438.1,7.70635456]
[1728399826784,0.96021156,2438.2,2437.4,1.1297]
[1728399826979,3.2078,2438.0,2437.4,2.71307272]
[1728399827177,0.96021156,2437.9,2437.4,2.71307272]
[1728399827477,0.96021156,2437.8,2437.4,2.71307272]
[1728399827683,0.96021156,2437.7,2437.4,2.71307272]
[1728399827885,0.96021156,2437.6,2437.4,2.71307272]
[1728399828085,3.2078,2438.0,2437.4,2.71307272]
[1728399828086,0.96021156,2437.5,2437.4,2.71307272]
[1728399828386,0.36931214,2437.5,2437.4,1.58337272]
[1728399828591,0.36931214,2437.5,2437.4,7.70635456]
[1728399828592,0.36504681,2437.5,2437.4,7.70635456]
[1728399829395,0.77544681,2437.5,2437.4,7.70635456]
[1728399829595,0.36504681,2437.5,2437.4,7.70635456]
[1728399830101,0.77308775,2437.5,2437.4,7.70635456]
[1728399830501,0.77308775,2437.5,2436.8,0.5893]
[1728399830502,0.36268775,2437.5,2436.8,0.5893]
[1728399830798,3.61823,2437.3,2437.2,6.12298184]
[1728399831003,3.98091775,2437.3,2437.2,6.12298184]
[1728399831500,0.41053,2436.7,2436.0,3.2078]
[1728399831703,3.2078,2436.5,2435.2,3.2078]
[1728399831894,3.2078,2436.5,2435.8,0.41068]
[1728399832094,3.2078,2437.2,2436.3,3.2078]
[1728399832301,3.2078,2437.2,2436.0,4.43]
[1728399832302,0.41047,2437.1,2436.6,3.2078]
[1728399832497,3.2078,2437.2,2436.0,4.43]
[1728399832498,3.2078,2437.2,2436.4,4.32999783]
[1728399832696,0.41046,2437.1,2436.4,4.32999783]
[1728399832897,3.2078,2437.2,2436.3,1.1567]
[1728399833092,3.2078,2437.2,2436.3,4.3645]
[1728399833395,0.41048,2437.1,2436.3,4.3645]
[1728399833701,3.61826,2437.2,2436.4,4.37650494]
[1728399834003,3.2078,2437.2,2436.4,4.95820494]
[1728399834195,3.2078,2437.2,2436.4,0.5817]
[1728399834507,0.4105,2436.9,2436.4,0.5817]
[1728399834897,3.2078,2437.2,2436.4,0.5817]
[1728399835600,0.4105,2436.9,2436.4,0.5817]
[1728399836010,3.2078,2437.5,2436.5,8.4734493]
[1728399836305,3.2078,2437.5,2436.4,3.7895]
[1728399836493,3.2078,2437.2,2436.4,3.7895]
[1728399837000,0.41051,2436.9,2436.4,3.7895]
[1728399837297,0.41052,2436.8,2436.4,3.7895]
[1728399837506,3.2078,2437.2,2436.4,3.7895]
[1728399837700,0.41047,2437.1,2436.4,4.20007]
[1728399837896,0.41047,2437.1,2436.5,4.72844559]
[1728399838100,3.61835,2436.6,2436.5,1.69803559]
[1728399838295,4.43,2436.8,2436.1,3.2078]
[1728399838296,0.41057,2436.5,2436.1,3.2078]
[1728399838608,0.4106,2436.3,2435.9,0.5601]
[1728399839100,3.2078,2436.6,2435.9,0.5601]
[1728399839101,0.41059,2436.4,2435.9,0.5601]
[1728399839302,3.2078,2436.6,2435.9,0.5601]
[1728399839303,0.41058,2436.5,2435.9,0.5601]
[1728399839497,4.43,2436.5,2435.9,0.5601]
[1728399839901,3.2078,2436.3,2435.9,0.5601]
[1728399840102,3.2078,2436.0,2435.4,3.2078]
[1728399840295,1.02626,2436.9,2435.4,3.2078]
[1728399840296,3.2078,2436.3,2435.7,0.41069]
[1728399840502,3.2078,2436.3,2435.6,4.59405753]
[1728399840698,3.2078,2436.3,2435.5,5.3630237]
[1728399840907,0.41062,2436.2,2435.5,0.67420576]
[1728399841095,3.2078,2436.3,2435.7,4.51422865]
[1728399841295,3.2078,2436.3,2435.7,0.41069]
[1728399841495,3.2078,2436.3,2436.0,0.41064]
[1728399841707,3.2078,2436.3,2435.8,0.41067]
[1728399842005,3.2078,2436.3,2436.1,4.72317999]
[1728399842213,3.2078,2436.6,2436.2,4.1048]
[1728399842413,3.2078,2436.6,2436.2,0.4106]
[1728399842700,3.2078,2436.6,2435.5,3.786924]
[1728399842701,4.43,2436.4,2435.5,3.516484]
[1728399842902,3.2078,2436.1,2435.3,1.154]
[1728399843096,3.2078,2436.1,2435.6,4.55252814]
[1728399843299,3.2078,2436.1,2435.6,0.41071]
[1728399843496,3.2078,2436.1,2435.7,4.1056]
[1728399843704,3.2078,2436.7,2435.7,9.43975616]
[1728399843899,3.2078,2436.7,2436.6,0.41055]
[1728399844408,3.2078,2437.0,2436.6,10.104]
[1728399844609,3.2078,2437.0,2436.0,0.5952]
[1728399844910,3.2078,2437.0,2436.5,0.41055]
[1728399845104,3.2078,2437.0,2436.1,12.93215697]
[1728399845302,3.2078,2437.0,2436.7,0.41052]
[1728399845606,3.2078,2437.0,2436.6,4.9221511]
[1728399846002,3.2078,2437.0,2436.7,0.41053]
[1728399846411,3.2078,2437.0,2436.7,4.51453]
[1728399846999,3.2078,2437.0,2436.7,4.104]
[1728399847302,3.2078,2437.0,2436.6,0.41054]
[1728399847804,3.2078,2437.0,2436.2,1.148]
[1728399848009,3.2078,2437.0,2436.8,0.4105]
[1728399848202,3.2078,2437.0,2436.9,0.4105]
[1728399848508,3.2078,2437.0,2436.9,4.5137]
[1728399848902,7.1478,2437.4,2436.9,4.1032]
[1728399849208,7.1478,2437.4,2437.0,0.41047]
[1728399849409,3.2078,2437.4,2437.2,0.41043]
[1728399849600,3.2078,2437.4,2436.6,1.02637]
[1728399849601,3.2078,2437.4,2436.6,15.05444812]
[1728399849909,3.2078,2437.4,2437.1,0.41046]
[1728399850299,3.61821,2437.4,2437.0,0.41046]
[1728399850604,3.2078,2437.4,2436.6,15.05444812]
[1728399851011,3.2078,2437.4,2437.1,0.41045]
[1728399851414,3.2078,2437.4,2437.2,0.41043]
[1728399851708,3.61821,2437.4,2437.1,0.41046]
[1728399852014,3.2078,2437.4,2437.1,0.41046]
[1728399852414,3.2078,2437.4,2437.2,0.41044]
[1728399852614,3.2078,2437.4,2437.3,0.41043]
[1728399852814,3.2078,2437.7,2436.9,4.63213832]
[1728399853106,3.2078,2437.7,2437.5,0.41039]
[1728399853313,0.41038,2437.6,2437.3,0.41042]
[1728399853512,3.2078,2437.4,2437.0,1.757]
[1728399853707,3.2078,2437.4,2437.1,0.41046]
[1728399853906,3.2078,2437.4,2437.2,0.41044]
[1728399854102,3.2078,2437.4,2437.1,0.41045]
[1728399854517,3.2078,2437.4,2437.3,0.3001]
[1728399854809,3.61821,2437.4,2437.3,0.3001]
[1728399855020,3.61821,2437.4,2437.3,1.2283]
[1728399855318,3.2078,2437.4,2437.3,1.2283]
[1728399855718,3.61821,2437.4,2437.3,1.2283]
[1728399855921,3.2078,2437.4,2437.3,1.2283]
[1728399856517,3.2078,2437.4,2437.3,1.63873]
[1728399856814,3.2078,2437.4,2434.1,6.53899301]
[1728399856815,0.41053,2436.7,2436.6,0.2016]
[1728399857009,3.2078,2436.7,2435.9,0.20065042]
[1728399857219,3.61833,2436.7,2436.0,0.41064]
[1728399857609,3.2078,2436.4,2435.9,0.41065]
[1728399859617,3.2078,2436.4,2436.0,0.41064]
[1728399859819,3.2078,2436.4,2435.5,0.5769]
[1728399860021,3.2078,2436.4,2436.1,0.41063]
[1728399860320,3.2078,2436.4,2436.0,0.41064]
[1728399860506,3.2078,2436.4,2436.1,0.41063]
[1728399861111,3.2078,2436.4,2435.6,9.59838131]
[1728399861313,3.2078,2436.4,2436.0,0.41064]
[1728399862515,3.2078,2436.1,2435.6,4.50480453]
[1728399862712,3.2078,2436.1,2435.6,0.2018]
[1728399862914,3.2078,2435.8,2435.6,0.2018]
[1728399863419,4.5163,2435.7,2435.6,0.2018]
[1728399863608,0.41072,2435.6,2435.1,0.41079]
[1728399863811,3.2078,2435.4,2435.1,0.41079]
[1728399864018,3.2078,2435.4,2435.1,0.4108]
[1728399864318,3.2078,2435.4,2434.4,1.02727]
[1728399864319,0.41086,2434.8,2434.2,0.41095]
[1728399864620,1.02685,2435.5,2433.8,3.2078]
[1728399864621,3.2078,2434.7,2434.3,0.48554809]
[1728399864820,3.2078,2435.0,2434.7,0.41086]
[1728399865024,3.2078,2435.0,2434.1,0.20125359]
[1728399865208,3.2078,2434.7,2434.1,0.2019]
[1728399865823,3.61867,2434.7,2434.2,0.41095]
[1728399866034,0.41089,2434.6,2434.1,0.2019]
[1728399866211,0.41089,2434.6,2434.1,0.61286]
[1728399866416,3.2078,2434.7,2434.2,0.41094]
[1728399866720,3.61867,2434.7,2434.2,0.41094]
[1728399866920,3.61867,2434.7,2434.1,0.2019]
[1728399867120,1.02706,2435.0,2434.1,0.2019]
[1728399867121,3.2078,2434.4,2434.1,0.2019]
[1728399868123,3.2078,2434.4,2434.1,0.61286]
[1728399868515,3.2078,2434.4,2434.1,0.2019]
[1728399868716,3.2078,2434.4,2434.3,0.41093]
[1728399870618,3.61873,2434.4,2434.1,0.2019]
[1728399870816,3.2078,2434.4,2434.1,0.2019]
[1728399871018,0.41094,2434.3,2434.1,0.2019]
[1728399871522,3.61873,2434.4,2434.1,0.2019]
[1728399871823,3.2078,2434.4,2434.1,0.2019]
[1728399872125,3.2078,2434.4,2434.3,0.41093]
[1728399873218,3.2078,2434.4,2434.1,0.2019]
[1728399873423,0.41095,2434.2,2434.1,0.2019]
[1728399873719,0.41094,2434.3,2434.1,0.2019]
[1728399873924,3.2078,2434.4,2434.1,0.61286]
[1728399874124,3.2078,2434.4,2434.1,0.2019]
[1728399874527,3.61873,2434.4,2434.1,0.61286]
[1728399875028,3.61873,2434.4,2434.1,0.2019]
[1728399875029,3.2078,2434.4,2434.1,0.2019]
[1728399875523,3.2078,2434.4,2434.3,0.41093]
[1728399875722,3.61872,2434.4,2434.1,0.61285]
[1728399875920,3.2078,2434.4,2434.1,0.2019]
[1728399876124,3.2078,2434.4,2434.3,0.41093]
[1728399880023,3.2078,2434.4,2434.1,0.2019]
[1728399880426,0.41095,2434.2,2434.1,0.2019]
[1728399881128,4.51895,2434.2,2434.1,0.2019]
[1728399881526,4.51895,2434.2,2433.7,0.9009686]
[1728399881527,4.108,2434.2,2433.2,4.43981819]
[1728399881833,3.2078,2433.7,2433.6,0.41105]
[1728399882434,3.2078,2433.7,2433.6,4.51985]
[1728399883231,3.2078,2433.7,2433.6,0.41105]
[1728399884735,2.83082776,2433.7,2433.6,4.51985]
[1728399884928,3.2078,2434.1,2434.0,0.41099]
[1728399885430,3.2078,2434.1,2434.0,4.51899]
[1728399885627,0.41093,2434.4,2434.0,4.108]
[1728399885628,3.2078,2434.4,2434.0,4.108]
[1728399885928,3.2078,2434.4,2434.3,0.41093]
[1728399887529,3.2078,2434.4,2433.8,3.2078]
[1728399887831,3.2078,2434.2,2433.3,0.4111]
[1728399888035,0.41098,2434.1,2433.7,0.41103]
[1728399889337,0.41099,2434.0,2433.7,0.41103]
[1728399890134,0.41099,2434.0,2433.4,5.18643601]
[1728399890334,0.41099,2434.0,2433.7,0.41102]
[1728399891132,0.41099,2434.0,2433.8,0.41102]
[1728399892242,3.61881,2433.9,2433.7,0.41103]
[1728399892840,3.2078,2434.2,2434.1,0.41097]
[1728399893440,3.2078,2434.2,2434.1,4.51897]
[1728399894339,3.2078,2434.5,2434.4,0.41092]
[1728399896133,3.2078,2434.9,2434.4,4.108]
[1728399896440,0.41081,2435.1,2434.9,0.41083]
[1728399896644,0.41081,2435.1,2434.8,0.41084]
[1728399896645,0.41082,2435.1,2434.8,0.41084]
[1728399896834,0.41082,2435.1,2434.7,0.41085]
[1728399896835,0.4108,2435.1,2434.7,0.41085]
[1728399897029,3.2078,2435.2,2434.6,0.6928]
[1728399897237,3.2078,2434.8,2434.3,0.49317153]
[1728399897430,3.2078,2434.5,2434.2,0.6949]
[1728399897641,3.61871,2434.5,2434.3,0.41093]
[1728399898343,0.41089,2434.6,2434.4,0.41092]
[1728399898844,4.23494,2434.8,2434.4,0.41092]
[1728399898845,3.2078,2434.8,2434.7,0.41087]
[1728399899441,3.61866,2434.8,2434.6,0.41088]
[1728399899638,0.41088,2434.7,2434.5,0.4109]
[1728399899943,0.41088,2434.7,2434.4,4.74451021]
[1728399900144,0.41088,2434.7,2434.5,0.41089]
[1728399900340,0.41088,2434.7,2434.5,0.4109]
[1728399901040,0.41088,2434.6,2434.4,0.41091]
[1728399901239,0.41088,2434.6,2434.3,0.48919964]
[1728399901240,1.43805,2434.7,2434.3,0.41093]
[1728399901552,11.0878,2434.4,2433.1,0.53146245]
[1728399901744,1.02785,2433.1,2431.5,3.2078]
[1728399902038,3.2078,2431.9,2431.5,4.64119787]
[1728399902339,3.2078,2431.9,2431.6,5.37222734]
[1728399902645,3.2078,2431.9,2431.7,4.64119787]
[1728399902840,3.2078,2431.9,2431.8,0.41136]
[1728399903034,3.2078,2432.6,2431.8,10.14623622]
[1728399903237,3.2078,2432.6,2432.2,0.41129]
[1728399903740,3.2078,2432.6,2432.0,0.41131]
[1728399903941,3.2078,2432.3,2431.8,10.36240212]
[1728399904139,3.2078,2432.3,2431.8,1.13055]
[1728399904341,0.41126,2432.4,2431.8,0.7192]
[1728399904547,0.41127,2432.4,2431.8,0.7192]
[1728399905045,3.2078,2432.6,2431.8,0.7192]
[1728399905250,3.2078,2432.6,2431.9,9.65722926]
[1728399905545,3.2078,2432.6,2432.1,0.41129]
[1728399905851,3.2078,2432.6,2432.2,4.41877093]
[1728399906540,3.61898,2432.9,2432.3,3.2078]
[1728399906844,3.61898,2432.9,2432.4,4.32534633]
[1728399906845,3.2078,2432.9,2432.4,4.32534633]
[1728399907041,0.4112,2432.8,2432.4,4.32534633]
[1728399907251,3.2078,2432.9,2432.4,4.32534633]
[1728399907438,0.41119,2432.8,2432.4,4.32534633]
[1728399907746,3.2078,2432.9,2432.4,4.32534633]
[1728399907946,0.41119,2432.8,2432.4,4.32534633]
[1728399908339,3.2078,2432.9,2432.4,4.32534633]
[1728399908535,3.2078,2432.9,2432.4,4.73659633]
[1728399908739,3.2078,2433.3,2432.5,8.55459989]
[1728399908935,0.41116,2433.0,2432.5,5.75802989]
[1728399909141,4.23561,2433.3,2432.6,4.44943546]
[1728399909337,3.2078,2433.0,2432.6,4.44943546]
[1728399909547,0.41119,2432.8,2432.3,1.12435766]
[1728399909745,3.2078,2433.0,2432.3,1.12435766]
[1728399910045,3.2078,2433.0,2432.4,4.44943546]
[1728399910046,3.2078,2432.7,2432.4,4.44943546]
[1728399910243,0.41124,2432.5,2432.4,4.44943546]
[1728399910447,3.2078,2432.7,2432.3,0.6421]
[1728399910647,0.41126,2432.4,2432.3,0.6421]
[1728399911149,3.2078,2432.7,2432.0,0.6912]
[1728399911351,3.2078,2432.4,2431.8,0.49696994]
[1728399911552,3.2078,2432.1,2431.5,3.2078]
[1728399911752,0.41133,2432.0,2431.6,0.41138]
[1728399911953,0.41133,2432.0,2431.7,4.59839791]
[1728399912149,3.61912,2432.1,2431.6,5.00977791]
[1728399912346,3.2078,2432.4,2431.5,3.2078]
[1728399912648,3.2078,2432.4,2431.7,9.64963986]
[1728399912844,3.2078,2432.4,2431.9,0.41134]
[1728399913048,3.2078,2432.4,2431.8,11.14493209]
[1728399913249,3.2078,2432.4,2432.1,0.4113]
[1728399913450,3.2078,2432.4,2432.0,4.83075244]
[1728399913653,3.2078,2432.4,2432.1,0.41131]
[1728399913946,3.61896,2433.0,2432.2,4.51955212]
[1728399914154,3.2078,2433.0,2432.6,0.41122]
[1728399914544,3.2078,2433.0,2432.6,0.41121]
[1728399915549,3.2078,2433.3,2432.9,0.41117]
[1728399915753,3.2078,2433.3,2432.3,1.02819]
[1728399915945,3.2078,2433.3,2433.0,0.41115]
[1728399916350,3.2078,2433.3,2432.6,0.7142]
[1728399916750,3.2078,2433.3,2432.6,5.20314185]
[1728399916951,3.6189,2433.3,2432.9,0.41116]
[1728399917147,0.41112,2433.2,2432.8,0.41118]